{"text_format":"3","workbook":"xlsx","n_sheets":2,"sheets":["Gewichtsverlust-Tracker","Berechnungen"],"not_rendered":{"charts":1,"defined_names":10},"read":"whole","date_system":"1900"}

{"sheet":"Gewichtsverlust-Tracker","index":0,"n_rows":19,"n_cols":9,"rows_kept":19,"merged":[[0,3,0,7],[0,8,0,9],[1,3,2,9]]}
[null,"ZIELGEWICHT","DIAGRAMMANSICHT","Madison Butler",{"$nulls":4},"GEWICHTSVERLUST"]
[{"$nulls":3},"TRACKER"]
[null,{"v":172,"d":"172.0"},"WÖCHENTLICHE"]
[null,"ZIELGEWICHT ANZEIGEN","Ja"]
[null,"In dieser Zelle befindet sich das Gewichts-Trackerdiagramm, das das aktuelle Gewicht nachverfolgt. Wählen Sie in Zelle C4 \"Ja\" aus, um die Zielgewichtslinie über dem Flächendiagramm anzuzeigen."]
[]
[null,"DATUM","GEWICHT"]
[null,{"$f":"TODAY()-77","v":"2023-01-12"},{"v":176,"d":"176.0"}]
[null,{"$f":"TODAY()-70","v":"2023-01-19"},{"v":176,"d":"176.0"}]
[null,{"$f":"TODAY()-63","v":"2023-01-26"},177.6]
[null,{"$f":"TODAY()-56","v":"2023-02-02"},176.5]
[null,{"$f":"TODAY()-49","v":"2023-02-09"},176.1]
[null,{"$f":"TODAY()-42","v":"2023-02-16"},{"v":174,"d":"174.0"}]
[null,{"$f":"TODAY()-35","v":"2023-02-23"},173.5]
[null,{"$f":"TODAY()-28","v":"2023-03-02"},{"v":173,"d":"173.0"}]
[null,{"$f":"TODAY()-21","v":"2023-03-09"},{"v":172,"d":"172.0"}]
[null,{"$f":"TODAY()-14","v":"2023-03-16"},{"v":172,"d":"172.0"}]
[null,{"$f":"TODAY()-7","v":"2023-03-23"},{"v":173,"d":"173.0"}]
[null,{"$f":"TODAY()","v":"2023-03-30"},{"v":172,"d":"172.0"}]

{"sheet":"Berechnungen","index":1,"n_rows":107,"n_cols":17,"rows_kept":107,"hidden":true}
["*** Dieses Blatt bleibt ausgeblendet ***"]
[]
[{"$f":"COUNTIF(A5:A107,FALSE)","v":12},"Zeiträume","Werte",{"$nulls":3},{"$f":"COUNTIF(H5:H28,\">\"&0)","v":3},"Zeiträume",null,"Werte"]
[null,"Woche",null,null,{"$f":"IFERROR(IF(ZeigeZielGewicht=\"Ja\", TRUE, FALSE),FALSE)","v":true},null,null,"Monat","EOM"]
[{"$f":"FALSE","v":false},{"$f":"IFERROR(IF(LEN('Gewichtsverlust-Tracker'!$B8)=0,TODAY(),'Gewichtsverlust-Tracker'!$B8),TODAY())","v":"2023-01-12"},{"$f":"IFERROR(IF(LEN('Gewichtsverlust-Tracker'!$C8)=0,ZielGewicht,'Gewichtsverlust-Tracker'!$C8),0)","v":176},{"$f":"IFERROR(IF(MIN(ChartZeiträume)=0,TODAY(),MIN(ChartZeiträume)),TODAY())","v":"2023-01-12"},{"$f":"IFERROR(IF($A$5,0,IF($E$4,ZielGewicht,NA())),0)","v":172},null,null,{"$f":"IFERROR(IF($A$5,TODAY(),DATE(YEAR($B5),MONTH($B5),1)),\"\")","v":"2023-01-01"},{"$f":"IFERROR(IF($A$5,TODAY(),EOMONTH($H5,0)),\"\")","v":"2023-01-31"},{"$f":"IFERROR(IF($A$5,0,AVERAGEIFS(Gewicht[GEWICHT],Gewicht[DATUM],\">=\"&$H5,Gewicht[DATUM],\"<=\"&$I5)),NA())","v":176.53333333333333}]
[{"$f":"IF((LEN('Gewichtsverlust-Tracker'!$C9)=0),TRUE)","v":false},{"$f":"IFERROR(IF(A6,0,IF(LEN('Gewichtsverlust-Tracker'!$B9)=0,0,'Gewichtsverlust-Tracker'!$B9)),\"\")","v":"2023-01-19"},{"$f":"IFERROR(IF(A6,0,IF(LEN('Gewichtsverlust-Tracker'!$C9)=0,0,'Gewichtsverlust-Tracker'!$C9)),\"\")","v":176},{"$f":"IFERROR(IF(MAX(ChartZeiträume)=0,TODAY(),MAX(ChartZeiträume)),TODAY())","v":"2023-03-30"},{"$f":"IFERROR(IF($A$5,0,IF($E$4,ZielGewicht,NA())),0)","v":172},null,null,{"$f":"IF($I5+1>MAX($B:$B),NA(),$I5+1)","v":"2023-02-01"},{"$f":"EOMONTH($H6,0)","v":"2023-02-28"},{"$f":"IFERROR(AVERAGEIFS(Gewicht[GEWICHT],Gewicht[DATUM],\">=\"&$H6,Gewicht[DATUM],\"<=\"&$I6),NA())","v":175.025}]
[{"$f":"IF((LEN('Gewichtsverlust-Tracker'!$C10)=0),TRUE)","v":false},{"$f":"IFERROR(IF(A7,0,IF(LEN('Gewichtsverlust-Tracker'!$B10)=0,0,'Gewichtsverlust-Tracker'!$B10)),\"\")","v":"2023-01-26"},{"$f":"IFERROR(IF(A7,0,IF(LEN('Gewichtsverlust-Tracker'!$C10)=0,0,'Gewichtsverlust-Tracker'!$C10)),\"\")","v":177.6},{"$nulls":4},"2023-03-01","2023-03-31",{"$f":"IFERROR(AVERAGEIFS(Gewicht[GEWICHT],Gewicht[DATUM],\">=\"&$H7,Gewicht[DATUM],\"<=\"&$I7),NA())","v":172.4}]
[{"$f":"IF((LEN('Gewichtsverlust-Tracker'!$C11)=0),TRUE)","v":false},{"$f":"IFERROR(IF(A8,0,IF(LEN('Gewichtsverlust-Tracker'!$B11)=0,0,'Gewichtsverlust-Tracker'!$B11)),\"\")","v":"2023-02-02"},{"$f":"IFERROR(IF(A8,0,IF(LEN('Gewichtsverlust-Tracker'!$C11)=0,0,'Gewichtsverlust-Tracker'!$C11)),\"\")","v":176.5},{"$nulls":4},{"$error":"#N/A"},{"$error":"#N/A"},{"$f":"IFERROR(AVERAGEIFS(Gewicht[GEWICHT],Gewicht[DATUM],\">=\"&$H8,Gewicht[DATUM],\"<=\"&$I8),NA())","v":{"$error":"#N/A"}}]
[{"$f":"IF((LEN('Gewichtsverlust-Tracker'!$C12)=0),TRUE)","v":false},{"$f":"IFERROR(IF(A9,0,IF(LEN('Gewichtsverlust-Tracker'!$B12)=0,0,'Gewichtsverlust-Tracker'!$B12)),\"\")","v":"2023-02-09"},{"$f":"IFERROR(IF(A9,0,IF(LEN('Gewichtsverlust-Tracker'!$C12)=0,0,'Gewichtsverlust-Tracker'!$C12)),\"\")","v":176.1},{"$nulls":4},{"$error":"#N/A"},{"$error":"#N/A"},{"$f":"IFERROR(AVERAGEIFS(Gewicht[GEWICHT],Gewicht[DATUM],\">=\"&$H9,Gewicht[DATUM],\"<=\"&$I9),NA())","v":{"$error":"#N/A"}}]
[{"$f":"IF((LEN('Gewichtsverlust-Tracker'!$C13)=0),TRUE)","v":false},{"$f":"IFERROR(IF(A10,0,IF(LEN('Gewichtsverlust-Tracker'!$B13)=0,0,'Gewichtsverlust-Tracker'!$B13)),\"\")","v":"2023-02-16"},{"$f":"IFERROR(IF(A10,0,IF(LEN('Gewichtsverlust-Tracker'!$C13)=0,0,'Gewichtsverlust-Tracker'!$C13)),\"\")","v":174},{"$nulls":4},{"$error":"#N/A"},{"$error":"#N/A"},{"$f":"IFERROR(AVERAGEIFS(Gewicht[GEWICHT],Gewicht[DATUM],\">=\"&$H10,Gewicht[DATUM],\"<=\"&$I10),NA())","v":{"$error":"#N/A"}}]
[{"$f":"IF((LEN('Gewichtsverlust-Tracker'!$C14)=0),TRUE)","v":false},{"$f":"IFERROR(IF(A11,0,IF(LEN('Gewichtsverlust-Tracker'!$B14)=0,0,'Gewichtsverlust-Tracker'!$B14)),\"\")","v":"2023-02-23"},{"$f":"IFERROR(IF(A11,0,IF(LEN('Gewichtsverlust-Tracker'!$C14)=0,0,'Gewichtsverlust-Tracker'!$C14)),\"\")","v":173.5},{"$nulls":4},{"$error":"#N/A"},{"$error":"#N/A"},{"$f":"IFERROR(AVERAGEIFS(Gewicht[GEWICHT],Gewicht[DATUM],\">=\"&$H11,Gewicht[DATUM],\"<=\"&$I11),NA())","v":{"$error":"#N/A"}},{"$nulls":6},{"$f":"MAX($B:$B)","v":"2023-03-30"}]
[{"$f":"IF((LEN('Gewichtsverlust-Tracker'!$C15)=0),TRUE)","v":false},{"$f":"IFERROR(IF(A12,0,IF(LEN('Gewichtsverlust-Tracker'!$B15)=0,0,'Gewichtsverlust-Tracker'!$B15)),\"\")","v":"2023-03-02"},{"$f":"IFERROR(IF(A12,0,IF(LEN('Gewichtsverlust-Tracker'!$C15)=0,0,'Gewichtsverlust-Tracker'!$C15)),\"\")","v":173},{"$nulls":4},{"$error":"#N/A"},{"$error":"#N/A"},{"$f":"IFERROR(AVERAGEIFS(Gewicht[GEWICHT],Gewicht[DATUM],\">=\"&$H12,Gewicht[DATUM],\"<=\"&$I12),NA())","v":{"$error":"#N/A"}}]
[{"$f":"IF((LEN('Gewichtsverlust-Tracker'!$C16)=0),TRUE)","v":false},{"$f":"IFERROR(IF(A13,0,IF(LEN('Gewichtsverlust-Tracker'!$B16)=0,0,'Gewichtsverlust-Tracker'!$B16)),\"\")","v":"2023-03-09"},{"$f":"IFERROR(IF(A13,0,IF(LEN('Gewichtsverlust-Tracker'!$C16)=0,0,'Gewichtsverlust-Tracker'!$C16)),\"\")","v":172},{"$nulls":4},{"$error":"#N/A"},{"$error":"#N/A"},{"$f":"IFERROR(AVERAGEIFS(Gewicht[GEWICHT],Gewicht[DATUM],\">=\"&$H13,Gewicht[DATUM],\"<=\"&$I13),NA())","v":{"$error":"#N/A"}}]
[{"$f":"IF((LEN('Gewichtsverlust-Tracker'!$C17)=0),TRUE)","v":false},{"$f":"IFERROR(IF(A14,0,IF(LEN('Gewichtsverlust-Tracker'!$B17)=0,0,'Gewichtsverlust-Tracker'!$B17)),\"\")","v":"2023-03-16"},{"$f":"IFERROR(IF(A14,0,IF(LEN('Gewichtsverlust-Tracker'!$C17)=0,0,'Gewichtsverlust-Tracker'!$C17)),\"\")","v":172},{"$nulls":4},{"$error":"#N/A"},{"$error":"#N/A"},{"$f":"IFERROR(AVERAGEIFS(Gewicht[GEWICHT],Gewicht[DATUM],\">=\"&$H14,Gewicht[DATUM],\"<=\"&$I14),NA())","v":{"$error":"#N/A"}}]
[{"$f":"IF((LEN('Gewichtsverlust-Tracker'!$C18)=0),TRUE)","v":false},{"$f":"IFERROR(IF(A15,0,IF(LEN('Gewichtsverlust-Tracker'!$B18)=0,0,'Gewichtsverlust-Tracker'!$B18)),\"\")","v":"2023-03-23"},{"$f":"IFERROR(IF(A15,0,IF(LEN('Gewichtsverlust-Tracker'!$C18)=0,0,'Gewichtsverlust-Tracker'!$C18)),\"\")","v":173},{"$nulls":4},{"$error":"#N/A"},{"$error":"#N/A"},{"$f":"IFERROR(AVERAGEIFS(Gewicht[GEWICHT],Gewicht[DATUM],\">=\"&$H15,Gewicht[DATUM],\"<=\"&$I15),NA())","v":{"$error":"#N/A"}}]
[{"$f":"IF((LEN('Gewichtsverlust-Tracker'!$C19)=0),TRUE)","v":false},{"$f":"IFERROR(IF(A16,0,IF(LEN('Gewichtsverlust-Tracker'!$B19)=0,0,'Gewichtsverlust-Tracker'!$B19)),\"\")","v":"2023-03-30"},{"$f":"IFERROR(IF(A16,0,IF(LEN('Gewichtsverlust-Tracker'!$C19)=0,0,'Gewichtsverlust-Tracker'!$C19)),\"\")","v":172},{"$nulls":4},{"$error":"#N/A"},{"$error":"#N/A"},{"$f":"IFERROR(AVERAGEIFS(Gewicht[GEWICHT],Gewicht[DATUM],\">=\"&$H16,Gewicht[DATUM],\"<=\"&$I16),NA())","v":{"$error":"#N/A"}}]
[{"$f":"IF((LEN('Gewichtsverlust-Tracker'!$C20)=0),TRUE)","v":true},{"$f":"IFERROR(IF(A17,0,IF(LEN('Gewichtsverlust-Tracker'!$B20)=0,0,'Gewichtsverlust-Tracker'!$B20)),\"\")","v":"00:00:00"},{"$f":"IFERROR(IF(A17,0,IF(LEN('Gewichtsverlust-Tracker'!$C20)=0,0,'Gewichtsverlust-Tracker'!$C20)),\"\")","v":0},{"$nulls":4},{"$error":"#N/A"},{"$error":"#N/A"},{"$f":"IFERROR(AVERAGEIFS(Gewicht[GEWICHT],Gewicht[DATUM],\">=\"&$H17,Gewicht[DATUM],\"<=\"&$I17),NA())","v":{"$error":"#N/A"}}]
[{"$f":"IF((LEN('Gewichtsverlust-Tracker'!$C21)=0),TRUE)","v":true},{"$f":"IFERROR(IF(A18,0,IF(LEN('Gewichtsverlust-Tracker'!$B21)=0,0,'Gewichtsverlust-Tracker'!$B21)),\"\")","v":"00:00:00"},{"$f":"IFERROR(IF(A18,0,IF(LEN('Gewichtsverlust-Tracker'!$C21)=0,0,'Gewichtsverlust-Tracker'!$C21)),\"\")","v":0},{"$nulls":4},{"$error":"#N/A"},{"$error":"#N/A"},{"$f":"IFERROR(AVERAGEIFS(Gewicht[GEWICHT],Gewicht[DATUM],\">=\"&$H18,Gewicht[DATUM],\"<=\"&$I18),NA())","v":{"$error":"#N/A"}}]
[{"$f":"IF((LEN('Gewichtsverlust-Tracker'!$C22)=0),TRUE)","v":true},{"$f":"IFERROR(IF(A19,0,IF(LEN('Gewichtsverlust-Tracker'!$B22)=0,0,'Gewichtsverlust-Tracker'!$B22)),\"\")","v":"00:00:00"},{"$f":"IFERROR(IF(A19,0,IF(LEN('Gewichtsverlust-Tracker'!$C22)=0,0,'Gewichtsverlust-Tracker'!$C22)),\"\")","v":0},{"$nulls":4},{"$error":"#N/A"},{"$error":"#N/A"},{"$f":"IFERROR(AVERAGEIFS(Gewicht[GEWICHT],Gewicht[DATUM],\">=\"&$H19,Gewicht[DATUM],\"<=\"&$I19),NA())","v":{"$error":"#N/A"}}]
[{"$f":"IF((LEN('Gewichtsverlust-Tracker'!$C23)=0),TRUE)","v":true},{"$f":"IFERROR(IF(A20,0,IF(LEN('Gewichtsverlust-Tracker'!$B23)=0,0,'Gewichtsverlust-Tracker'!$B23)),\"\")","v":"00:00:00"},{"$f":"IFERROR(IF(A20,0,IF(LEN('Gewichtsverlust-Tracker'!$C23)=0,0,'Gewichtsverlust-Tracker'!$C23)),\"\")","v":0},{"$nulls":4},{"$error":"#N/A"},{"$error":"#N/A"},{"$f":"IFERROR(AVERAGEIFS(Gewicht[GEWICHT],Gewicht[DATUM],\">=\"&$H20,Gewicht[DATUM],\"<=\"&$I20),NA())","v":{"$error":"#N/A"}}]
[{"$f":"IF((LEN('Gewichtsverlust-Tracker'!$C24)=0),TRUE)","v":true},{"$f":"IFERROR(IF(A21,0,IF(LEN('Gewichtsverlust-Tracker'!$B24)=0,0,'Gewichtsverlust-Tracker'!$B24)),\"\")","v":"00:00:00"},{"$f":"IFERROR(IF(A21,0,IF(LEN('Gewichtsverlust-Tracker'!$C24)=0,0,'Gewichtsverlust-Tracker'!$C24)),\"\")","v":0},{"$nulls":4},{"$error":"#N/A"},{"$error":"#N/A"},{"$f":"IFERROR(AVERAGEIFS(Gewicht[GEWICHT],Gewicht[DATUM],\">=\"&$H21,Gewicht[DATUM],\"<=\"&$I21),NA())","v":{"$error":"#N/A"}}]
[{"$f":"IF((LEN('Gewichtsverlust-Tracker'!$C25)=0),TRUE)","v":true},{"$f":"IFERROR(IF(A22,0,IF(LEN('Gewichtsverlust-Tracker'!$B25)=0,0,'Gewichtsverlust-Tracker'!$B25)),\"\")","v":"00:00:00"},{"$f":"IFERROR(IF(A22,0,IF(LEN('Gewichtsverlust-Tracker'!$C25)=0,0,'Gewichtsverlust-Tracker'!$C25)),\"\")","v":0},{"$nulls":4},{"$error":"#N/A"},{"$error":"#N/A"},{"$f":"IFERROR(AVERAGEIFS(Gewicht[GEWICHT],Gewicht[DATUM],\">=\"&$H22,Gewicht[DATUM],\"<=\"&$I22),NA())","v":{"$error":"#N/A"}}]
[{"$f":"IF((LEN('Gewichtsverlust-Tracker'!$C26)=0),TRUE)","v":true},{"$f":"IFERROR(IF(A23,0,IF(LEN('Gewichtsverlust-Tracker'!$B26)=0,0,'Gewichtsverlust-Tracker'!$B26)),\"\")","v":"00:00:00"},{"$f":"IFERROR(IF(A23,0,IF(LEN('Gewichtsverlust-Tracker'!$C26)=0,0,'Gewichtsverlust-Tracker'!$C26)),\"\")","v":0},{"$nulls":4},{"$error":"#N/A"},{"$error":"#N/A"},{"$f":"IFERROR(AVERAGEIFS(Gewicht[GEWICHT],Gewicht[DATUM],\">=\"&$H23,Gewicht[DATUM],\"<=\"&$I23),NA())","v":{"$error":"#N/A"}}]
[{"$f":"IF((LEN('Gewichtsverlust-Tracker'!$C27)=0),TRUE)","v":true},{"$f":"IFERROR(IF(A24,0,IF(LEN('Gewichtsverlust-Tracker'!$B27)=0,0,'Gewichtsverlust-Tracker'!$B27)),\"\")","v":"00:00:00"},{"$f":"IFERROR(IF(A24,0,IF(LEN('Gewichtsverlust-Tracker'!$C27)=0,0,'Gewichtsverlust-Tracker'!$C27)),\"\")","v":0},{"$nulls":4},{"$error":"#N/A"},{"$error":"#N/A"},{"$f":"IFERROR(AVERAGEIFS(Gewicht[GEWICHT],Gewicht[DATUM],\">=\"&$H24,Gewicht[DATUM],\"<=\"&$I24),NA())","v":{"$error":"#N/A"}}]
[{"$f":"IF((LEN('Gewichtsverlust-Tracker'!$C28)=0),TRUE)","v":true},{"$f":"IFERROR(IF(A25,0,IF(LEN('Gewichtsverlust-Tracker'!$B28)=0,0,'Gewichtsverlust-Tracker'!$B28)),\"\")","v":"00:00:00"},{"$f":"IFERROR(IF(A25,0,IF(LEN('Gewichtsverlust-Tracker'!$C28)=0,0,'Gewichtsverlust-Tracker'!$C28)),\"\")","v":0},{"$nulls":4},{"$error":"#N/A"},{"$error":"#N/A"},{"$f":"IFERROR(AVERAGEIFS(Gewicht[GEWICHT],Gewicht[DATUM],\">=\"&$H25,Gewicht[DATUM],\"<=\"&$I25),NA())","v":{"$error":"#N/A"}}]
[{"$f":"IF((LEN('Gewichtsverlust-Tracker'!$C29)=0),TRUE)","v":true},{"$f":"IFERROR(IF(A26,0,IF(LEN('Gewichtsverlust-Tracker'!$B29)=0,0,'Gewichtsverlust-Tracker'!$B29)),\"\")","v":"00:00:00"},{"$f":"IFERROR(IF(A26,0,IF(LEN('Gewichtsverlust-Tracker'!$C29)=0,0,'Gewichtsverlust-Tracker'!$C29)),\"\")","v":0},{"$nulls":4},{"$error":"#N/A"},{"$error":"#N/A"},{"$f":"IFERROR(AVERAGEIFS(Gewicht[GEWICHT],Gewicht[DATUM],\">=\"&$H26,Gewicht[DATUM],\"<=\"&$I26),NA())","v":{"$error":"#N/A"}}]
[{"$f":"IF((LEN('Gewichtsverlust-Tracker'!$C30)=0),TRUE)","v":true},{"$f":"IFERROR(IF(A27,0,IF(LEN('Gewichtsverlust-Tracker'!$B30)=0,0,'Gewichtsverlust-Tracker'!$B30)),\"\")","v":"00:00:00"},{"$f":"IFERROR(IF(A27,0,IF(LEN('Gewichtsverlust-Tracker'!$C30)=0,0,'Gewichtsverlust-Tracker'!$C30)),\"\")","v":0},{"$nulls":4},{"$error":"#N/A"},{"$error":"#N/A"},{"$f":"IFERROR(AVERAGEIFS(Gewicht[GEWICHT],Gewicht[DATUM],\">=\"&$H27,Gewicht[DATUM],\"<=\"&$I27),NA())","v":{"$error":"#N/A"}}]
[{"$f":"IF((LEN('Gewichtsverlust-Tracker'!$C31)=0),TRUE)","v":true},{"$f":"IFERROR(IF(A28,0,IF(LEN('Gewichtsverlust-Tracker'!$B31)=0,0,'Gewichtsverlust-Tracker'!$B31)),\"\")","v":"00:00:00"},{"$f":"IFERROR(IF(A28,0,IF(LEN('Gewichtsverlust-Tracker'!$C31)=0,0,'Gewichtsverlust-Tracker'!$C31)),\"\")","v":0},{"$nulls":4},{"$error":"#N/A"},{"$error":"#N/A"},{"$f":"IFERROR(AVERAGEIFS(Gewicht[GEWICHT],Gewicht[DATUM],\">=\"&$H28,Gewicht[DATUM],\"<=\"&$I28),NA())","v":{"$error":"#N/A"}}]
[{"$f":"IF((LEN('Gewichtsverlust-Tracker'!$C32)=0),TRUE)","v":true},{"$f":"IFERROR(IF(A29,0,IF(LEN('Gewichtsverlust-Tracker'!$B32)=0,0,'Gewichtsverlust-Tracker'!$B32)),\"\")","v":"00:00:00"},{"$f":"IFERROR(IF(A29,0,IF(LEN('Gewichtsverlust-Tracker'!$C32)=0,0,'Gewichtsverlust-Tracker'!$C32)),\"\")","v":0}]
[{"$f":"IF((LEN('Gewichtsverlust-Tracker'!$C33)=0),TRUE)","v":true},{"$f":"IFERROR(IF(A30,0,IF(LEN('Gewichtsverlust-Tracker'!$B33)=0,0,'Gewichtsverlust-Tracker'!$B33)),\"\")","v":"00:00:00"},{"$f":"IFERROR(IF(A30,0,IF(LEN('Gewichtsverlust-Tracker'!$C33)=0,0,'Gewichtsverlust-Tracker'!$C33)),\"\")","v":0}]
[{"$f":"IF((LEN('Gewichtsverlust-Tracker'!$C34)=0),TRUE)","v":true},{"$f":"IFERROR(IF(A31,0,IF(LEN('Gewichtsverlust-Tracker'!$B34)=0,0,'Gewichtsverlust-Tracker'!$B34)),\"\")","v":"00:00:00"},{"$f":"IFERROR(IF(A31,0,IF(LEN('Gewichtsverlust-Tracker'!$C34)=0,0,'Gewichtsverlust-Tracker'!$C34)),\"\")","v":0}]
[{"$f":"IF((LEN('Gewichtsverlust-Tracker'!$C35)=0),TRUE)","v":true},{"$f":"IFERROR(IF(A32,0,IF(LEN('Gewichtsverlust-Tracker'!$B35)=0,0,'Gewichtsverlust-Tracker'!$B35)),\"\")","v":"00:00:00"},{"$f":"IFERROR(IF(A32,0,IF(LEN('Gewichtsverlust-Tracker'!$C35)=0,0,'Gewichtsverlust-Tracker'!$C35)),\"\")","v":0}]
[{"$f":"IF((LEN('Gewichtsverlust-Tracker'!$C36)=0),TRUE)","v":true},{"$f":"IFERROR(IF(A33,0,IF(LEN('Gewichtsverlust-Tracker'!$B36)=0,0,'Gewichtsverlust-Tracker'!$B36)),\"\")","v":"00:00:00"},{"$f":"IFERROR(IF(A33,0,IF(LEN('Gewichtsverlust-Tracker'!$C36)=0,0,'Gewichtsverlust-Tracker'!$C36)),\"\")","v":0}]
[{"$f":"IF((LEN('Gewichtsverlust-Tracker'!$C37)=0),TRUE)","v":true},{"$f":"IFERROR(IF(A34,0,IF(LEN('Gewichtsverlust-Tracker'!$B37)=0,0,'Gewichtsverlust-Tracker'!$B37)),\"\")","v":"00:00:00"},{"$f":"IFERROR(IF(A34,0,IF(LEN('Gewichtsverlust-Tracker'!$C37)=0,0,'Gewichtsverlust-Tracker'!$C37)),\"\")","v":0}]
[{"$f":"IF((LEN('Gewichtsverlust-Tracker'!$C38)=0),TRUE)","v":true},{"$f":"IFERROR(IF(A35,0,IF(LEN('Gewichtsverlust-Tracker'!$B38)=0,0,'Gewichtsverlust-Tracker'!$B38)),\"\")","v":"00:00:00"},{"$f":"IFERROR(IF(A35,0,IF(LEN('Gewichtsverlust-Tracker'!$C38)=0,0,'Gewichtsverlust-Tracker'!$C38)),\"\")","v":0}]
[{"$f":"IF((LEN('Gewichtsverlust-Tracker'!$C39)=0),TRUE)","v":true},{"$f":"IFERROR(IF(A36,0,IF(LEN('Gewichtsverlust-Tracker'!$B39)=0,0,'Gewichtsverlust-Tracker'!$B39)),\"\")","v":"00:00:00"},{"$f":"IFERROR(IF(A36,0,IF(LEN('Gewichtsverlust-Tracker'!$C39)=0,0,'Gewichtsverlust-Tracker'!$C39)),\"\")","v":0}]
[{"$f":"IF((LEN('Gewichtsverlust-Tracker'!$C40)=0),TRUE)","v":true},{"$f":"IFERROR(IF(A37,0,IF(LEN('Gewichtsverlust-Tracker'!$B40)=0,0,'Gewichtsverlust-Tracker'!$B40)),\"\")","v":"00:00:00"},{"$f":"IFERROR(IF(A37,0,IF(LEN('Gewichtsverlust-Tracker'!$C40)=0,0,'Gewichtsverlust-Tracker'!$C40)),\"\")","v":0}]
[{"$f":"IF((LEN('Gewichtsverlust-Tracker'!$C41)=0),TRUE)","v":true},{"$f":"IFERROR(IF(A38,0,IF(LEN('Gewichtsverlust-Tracker'!$B41)=0,0,'Gewichtsverlust-Tracker'!$B41)),\"\")","v":"00:00:00"},{"$f":"IFERROR(IF(A38,0,IF(LEN('Gewichtsverlust-Tracker'!$C41)=0,0,'Gewichtsverlust-Tracker'!$C41)),\"\")","v":0}]
[{"$f":"IF((LEN('Gewichtsverlust-Tracker'!$C42)=0),TRUE)","v":true},{"$f":"IFERROR(IF(A39,0,IF(LEN('Gewichtsverlust-Tracker'!$B42)=0,0,'Gewichtsverlust-Tracker'!$B42)),\"\")","v":"00:00:00"},{"$f":"IFERROR(IF(A39,0,IF(LEN('Gewichtsverlust-Tracker'!$C42)=0,0,'Gewichtsverlust-Tracker'!$C42)),\"\")","v":0}]
[{"$f":"IF((LEN('Gewichtsverlust-Tracker'!$C43)=0),TRUE)","v":true},{"$f":"IFERROR(IF(A40,0,IF(LEN('Gewichtsverlust-Tracker'!$B43)=0,0,'Gewichtsverlust-Tracker'!$B43)),\"\")","v":"00:00:00"},{"$f":"IFERROR(IF(A40,0,IF(LEN('Gewichtsverlust-Tracker'!$C43)=0,0,'Gewichtsverlust-Tracker'!$C43)),\"\")","v":0}]
[{"$f":"IF((LEN('Gewichtsverlust-Tracker'!$C44)=0),TRUE)","v":true},{"$f":"IFERROR(IF(A41,0,IF(LEN('Gewichtsverlust-Tracker'!$B44)=0,0,'Gewichtsverlust-Tracker'!$B44)),\"\")","v":"00:00:00"},{"$f":"IFERROR(IF(A41,0,IF(LEN('Gewichtsverlust-Tracker'!$C44)=0,0,'Gewichtsverlust-Tracker'!$C44)),\"\")","v":0}]
[{"$f":"IF((LEN('Gewichtsverlust-Tracker'!$C45)=0),TRUE)","v":true},{"$f":"IFERROR(IF(A42,0,IF(LEN('Gewichtsverlust-Tracker'!$B45)=0,0,'Gewichtsverlust-Tracker'!$B45)),\"\")","v":"00:00:00"},{"$f":"IFERROR(IF(A42,0,IF(LEN('Gewichtsverlust-Tracker'!$C45)=0,0,'Gewichtsverlust-Tracker'!$C45)),\"\")","v":0}]
[{"$f":"IF((LEN('Gewichtsverlust-Tracker'!$C46)=0),TRUE)","v":true},{"$f":"IFERROR(IF(A43,0,IF(LEN('Gewichtsverlust-Tracker'!$B46)=0,0,'Gewichtsverlust-Tracker'!$B46)),\"\")","v":"00:00:00"},{"$f":"IFERROR(IF(A43,0,IF(LEN('Gewichtsverlust-Tracker'!$C46)=0,0,'Gewichtsverlust-Tracker'!$C46)),\"\")","v":0}]
[{"$f":"IF((LEN('Gewichtsverlust-Tracker'!$C47)=0),TRUE)","v":true},{"$f":"IFERROR(IF(A44,0,IF(LEN('Gewichtsverlust-Tracker'!$B47)=0,0,'Gewichtsverlust-Tracker'!$B47)),\"\")","v":"00:00:00"},{"$f":"IFERROR(IF(A44,0,IF(LEN('Gewichtsverlust-Tracker'!$C47)=0,0,'Gewichtsverlust-Tracker'!$C47)),\"\")","v":0}]
[{"$f":"IF((LEN('Gewichtsverlust-Tracker'!$C48)=0),TRUE)","v":true},{"$f":"IFERROR(IF(A45,0,IF(LEN('Gewichtsverlust-Tracker'!$B48)=0,0,'Gewichtsverlust-Tracker'!$B48)),\"\")","v":"00:00:00"},{"$f":"IFERROR(IF(A45,0,IF(LEN('Gewichtsverlust-Tracker'!$C48)=0,0,'Gewichtsverlust-Tracker'!$C48)),\"\")","v":0}]
[{"$f":"IF((LEN('Gewichtsverlust-Tracker'!$C49)=0),TRUE)","v":true},{"$f":"IFERROR(IF(A46,0,IF(LEN('Gewichtsverlust-Tracker'!$B49)=0,0,'Gewichtsverlust-Tracker'!$B49)),\"\")","v":"00:00:00"},{"$f":"IFERROR(IF(A46,0,IF(LEN('Gewichtsverlust-Tracker'!$C49)=0,0,'Gewichtsverlust-Tracker'!$C49)),\"\")","v":0}]
[{"$f":"IF((LEN('Gewichtsverlust-Tracker'!$C50)=0),TRUE)","v":true},{"$f":"IFERROR(IF(A47,0,IF(LEN('Gewichtsverlust-Tracker'!$B50)=0,0,'Gewichtsverlust-Tracker'!$B50)),\"\")","v":"00:00:00"},{"$f":"IFERROR(IF(A47,0,IF(LEN('Gewichtsverlust-Tracker'!$C50)=0,0,'Gewichtsverlust-Tracker'!$C50)),\"\")","v":0}]
[{"$f":"IF((LEN('Gewichtsverlust-Tracker'!$C51)=0),TRUE)","v":true},{"$f":"IFERROR(IF(A48,0,IF(LEN('Gewichtsverlust-Tracker'!$B51)=0,0,'Gewichtsverlust-Tracker'!$B51)),\"\")","v":"00:00:00"},{"$f":"IFERROR(IF(A48,0,IF(LEN('Gewichtsverlust-Tracker'!$C51)=0,0,'Gewichtsverlust-Tracker'!$C51)),\"\")","v":0}]
[{"$f":"IF((LEN('Gewichtsverlust-Tracker'!$C52)=0),TRUE)","v":true},{"$f":"IFERROR(IF(A49,0,IF(LEN('Gewichtsverlust-Tracker'!$B52)=0,0,'Gewichtsverlust-Tracker'!$B52)),\"\")","v":"00:00:00"},{"$f":"IFERROR(IF(A49,0,IF(LEN('Gewichtsverlust-Tracker'!$C52)=0,0,'Gewichtsverlust-Tracker'!$C52)),\"\")","v":0}]
[{"$f":"IF((LEN('Gewichtsverlust-Tracker'!$C53)=0),TRUE)","v":true},{"$f":"IFERROR(IF(A50,0,IF(LEN('Gewichtsverlust-Tracker'!$B53)=0,0,'Gewichtsverlust-Tracker'!$B53)),\"\")","v":"00:00:00"},{"$f":"IFERROR(IF(A50,0,IF(LEN('Gewichtsverlust-Tracker'!$C53)=0,0,'Gewichtsverlust-Tracker'!$C53)),\"\")","v":0}]
[{"$f":"IF((LEN('Gewichtsverlust-Tracker'!$C54)=0),TRUE)","v":true},{"$f":"IFERROR(IF(A51,0,IF(LEN('Gewichtsverlust-Tracker'!$B54)=0,0,'Gewichtsverlust-Tracker'!$B54)),\"\")","v":"00:00:00"},{"$f":"IFERROR(IF(A51,0,IF(LEN('Gewichtsverlust-Tracker'!$C54)=0,0,'Gewichtsverlust-Tracker'!$C54)),\"\")","v":0}]
[{"$f":"IF((LEN('Gewichtsverlust-Tracker'!$C55)=0),TRUE)","v":true},{"$f":"IFERROR(IF(A52,0,IF(LEN('Gewichtsverlust-Tracker'!$B55)=0,0,'Gewichtsverlust-Tracker'!$B55)),\"\")","v":"00:00:00"},{"$f":"IFERROR(IF(A52,0,IF(LEN('Gewichtsverlust-Tracker'!$C55)=0,0,'Gewichtsverlust-Tracker'!$C55)),\"\")","v":0}]
[{"$f":"IF((LEN('Gewichtsverlust-Tracker'!$C56)=0),TRUE)","v":true},{"$f":"IFERROR(IF(A53,0,IF(LEN('Gewichtsverlust-Tracker'!$B56)=0,0,'Gewichtsverlust-Tracker'!$B56)),\"\")","v":"00:00:00"},{"$f":"IFERROR(IF(A53,0,IF(LEN('Gewichtsverlust-Tracker'!$C56)=0,0,'Gewichtsverlust-Tracker'!$C56)),\"\")","v":0}]
[{"$f":"IF((LEN('Gewichtsverlust-Tracker'!$C57)=0),TRUE)","v":true},{"$f":"IFERROR(IF(A54,0,IF(LEN('Gewichtsverlust-Tracker'!$B57)=0,0,'Gewichtsverlust-Tracker'!$B57)),\"\")","v":"00:00:00"},{"$f":"IFERROR(IF(A54,0,IF(LEN('Gewichtsverlust-Tracker'!$C57)=0,0,'Gewichtsverlust-Tracker'!$C57)),\"\")","v":0}]
[{"$f":"IF((LEN('Gewichtsverlust-Tracker'!$C58)=0),TRUE)","v":true},{"$f":"IFERROR(IF(A55,0,IF(LEN('Gewichtsverlust-Tracker'!$B58)=0,0,'Gewichtsverlust-Tracker'!$B58)),\"\")","v":"00:00:00"},{"$f":"IFERROR(IF(A55,0,IF(LEN('Gewichtsverlust-Tracker'!$C58)=0,0,'Gewichtsverlust-Tracker'!$C58)),\"\")","v":0}]
[{"$f":"IF((LEN('Gewichtsverlust-Tracker'!$C59)=0),TRUE)","v":true},{"$f":"IFERROR(IF(A56,0,IF(LEN('Gewichtsverlust-Tracker'!$B59)=0,0,'Gewichtsverlust-Tracker'!$B59)),\"\")","v":"00:00:00"},{"$f":"IFERROR(IF(A56,0,IF(LEN('Gewichtsverlust-Tracker'!$C59)=0,0,'Gewichtsverlust-Tracker'!$C59)),\"\")","v":0}]
[{"$f":"IF((LEN('Gewichtsverlust-Tracker'!$C60)=0),TRUE)","v":true},{"$f":"IFERROR(IF(A57,0,IF(LEN('Gewichtsverlust-Tracker'!$B60)=0,0,'Gewichtsverlust-Tracker'!$B60)),\"\")","v":"00:00:00"},{"$f":"IFERROR(IF(A57,0,IF(LEN('Gewichtsverlust-Tracker'!$C60)=0,0,'Gewichtsverlust-Tracker'!$C60)),\"\")","v":0}]
[{"$f":"IF((LEN('Gewichtsverlust-Tracker'!$C61)=0),TRUE)","v":true},{"$f":"IFERROR(IF(A58,0,IF(LEN('Gewichtsverlust-Tracker'!$B61)=0,0,'Gewichtsverlust-Tracker'!$B61)),\"\")","v":"00:00:00"},{"$f":"IFERROR(IF(A58,0,IF(LEN('Gewichtsverlust-Tracker'!$C61)=0,0,'Gewichtsverlust-Tracker'!$C61)),\"\")","v":0}]
[{"$f":"IF((LEN('Gewichtsverlust-Tracker'!$C62)=0),TRUE)","v":true},{"$f":"IFERROR(IF(A59,0,IF(LEN('Gewichtsverlust-Tracker'!$B62)=0,0,'Gewichtsverlust-Tracker'!$B62)),\"\")","v":"00:00:00"},{"$f":"IFERROR(IF(A59,0,IF(LEN('Gewichtsverlust-Tracker'!$C62)=0,0,'Gewichtsverlust-Tracker'!$C62)),\"\")","v":0}]
[{"$f":"IF((LEN('Gewichtsverlust-Tracker'!$C63)=0),TRUE)","v":true},{"$f":"IFERROR(IF(A60,0,IF(LEN('Gewichtsverlust-Tracker'!$B63)=0,0,'Gewichtsverlust-Tracker'!$B63)),\"\")","v":"00:00:00"},{"$f":"IFERROR(IF(A60,0,IF(LEN('Gewichtsverlust-Tracker'!$C63)=0,0,'Gewichtsverlust-Tracker'!$C63)),\"\")","v":0}]
[{"$f":"IF((LEN('Gewichtsverlust-Tracker'!$C64)=0),TRUE)","v":true},{"$f":"IFERROR(IF(A61,0,IF(LEN('Gewichtsverlust-Tracker'!$B64)=0,0,'Gewichtsverlust-Tracker'!$B64)),\"\")","v":"00:00:00"},{"$f":"IFERROR(IF(A61,0,IF(LEN('Gewichtsverlust-Tracker'!$C64)=0,0,'Gewichtsverlust-Tracker'!$C64)),\"\")","v":0}]
[{"$f":"IF((LEN('Gewichtsverlust-Tracker'!$C65)=0),TRUE)","v":true},{"$f":"IFERROR(IF(A62,0,IF(LEN('Gewichtsverlust-Tracker'!$B65)=0,0,'Gewichtsverlust-Tracker'!$B65)),\"\")","v":"00:00:00"},{"$f":"IFERROR(IF(A62,0,IF(LEN('Gewichtsverlust-Tracker'!$C65)=0,0,'Gewichtsverlust-Tracker'!$C65)),\"\")","v":0}]
[{"$f":"IF((LEN('Gewichtsverlust-Tracker'!$C66)=0),TRUE)","v":true},{"$f":"IFERROR(IF(A63,0,IF(LEN('Gewichtsverlust-Tracker'!$B66)=0,0,'Gewichtsverlust-Tracker'!$B66)),\"\")","v":"00:00:00"},{"$f":"IFERROR(IF(A63,0,IF(LEN('Gewichtsverlust-Tracker'!$C66)=0,0,'Gewichtsverlust-Tracker'!$C66)),\"\")","v":0}]
[{"$f":"IF((LEN('Gewichtsverlust-Tracker'!$C67)=0),TRUE)","v":true},{"$f":"IFERROR(IF(A64,0,IF(LEN('Gewichtsverlust-Tracker'!$B67)=0,0,'Gewichtsverlust-Tracker'!$B67)),\"\")","v":"00:00:00"},{"$f":"IFERROR(IF(A64,0,IF(LEN('Gewichtsverlust-Tracker'!$C67)=0,0,'Gewichtsverlust-Tracker'!$C67)),\"\")","v":0}]
[{"$f":"IF((LEN('Gewichtsverlust-Tracker'!$C68)=0),TRUE)","v":true},{"$f":"IFERROR(IF(A65,0,IF(LEN('Gewichtsverlust-Tracker'!$B68)=0,0,'Gewichtsverlust-Tracker'!$B68)),\"\")","v":"00:00:00"},{"$f":"IFERROR(IF(A65,0,IF(LEN('Gewichtsverlust-Tracker'!$C68)=0,0,'Gewichtsverlust-Tracker'!$C68)),\"\")","v":0}]
[{"$f":"IF((LEN('Gewichtsverlust-Tracker'!$C69)=0),TRUE)","v":true},{"$f":"IFERROR(IF(A66,0,IF(LEN('Gewichtsverlust-Tracker'!$B69)=0,0,'Gewichtsverlust-Tracker'!$B69)),\"\")","v":"00:00:00"},{"$f":"IFERROR(IF(A66,0,IF(LEN('Gewichtsverlust-Tracker'!$C69)=0,0,'Gewichtsverlust-Tracker'!$C69)),\"\")","v":0}]
[{"$f":"IF((LEN('Gewichtsverlust-Tracker'!$C70)=0),TRUE)","v":true},{"$f":"IFERROR(IF(A67,0,IF(LEN('Gewichtsverlust-Tracker'!$B70)=0,0,'Gewichtsverlust-Tracker'!$B70)),\"\")","v":"00:00:00"},{"$f":"IFERROR(IF(A67,0,IF(LEN('Gewichtsverlust-Tracker'!$C70)=0,0,'Gewichtsverlust-Tracker'!$C70)),\"\")","v":0}]
[{"$f":"IF((LEN('Gewichtsverlust-Tracker'!$C71)=0),TRUE)","v":true},{"$f":"IFERROR(IF(A68,0,IF(LEN('Gewichtsverlust-Tracker'!$B71)=0,0,'Gewichtsverlust-Tracker'!$B71)),\"\")","v":"00:00:00"},{"$f":"IFERROR(IF(A68,0,IF(LEN('Gewichtsverlust-Tracker'!$C71)=0,0,'Gewichtsverlust-Tracker'!$C71)),\"\")","v":0}]
[{"$f":"IF((LEN('Gewichtsverlust-Tracker'!$C72)=0),TRUE)","v":true},{"$f":"IFERROR(IF(A69,0,IF(LEN('Gewichtsverlust-Tracker'!$B72)=0,0,'Gewichtsverlust-Tracker'!$B72)),\"\")","v":"00:00:00"},{"$f":"IFERROR(IF(A69,0,IF(LEN('Gewichtsverlust-Tracker'!$C72)=0,0,'Gewichtsverlust-Tracker'!$C72)),\"\")","v":0}]
[{"$f":"IF((LEN('Gewichtsverlust-Tracker'!$C73)=0),TRUE)","v":true},{"$f":"IFERROR(IF(A70,0,IF(LEN('Gewichtsverlust-Tracker'!$B73)=0,0,'Gewichtsverlust-Tracker'!$B73)),\"\")","v":"00:00:00"},{"$f":"IFERROR(IF(A70,0,IF(LEN('Gewichtsverlust-Tracker'!$C73)=0,0,'Gewichtsverlust-Tracker'!$C73)),\"\")","v":0}]
[{"$f":"IF((LEN('Gewichtsverlust-Tracker'!$C74)=0),TRUE)","v":true},{"$f":"IFERROR(IF(A71,0,IF(LEN('Gewichtsverlust-Tracker'!$B74)=0,0,'Gewichtsverlust-Tracker'!$B74)),\"\")","v":"00:00:00"},{"$f":"IFERROR(IF(A71,0,IF(LEN('Gewichtsverlust-Tracker'!$C74)=0,0,'Gewichtsverlust-Tracker'!$C74)),\"\")","v":0}]
[{"$f":"IF((LEN('Gewichtsverlust-Tracker'!$C75)=0),TRUE)","v":true},{"$f":"IFERROR(IF(A72,0,IF(LEN('Gewichtsverlust-Tracker'!$B75)=0,0,'Gewichtsverlust-Tracker'!$B75)),\"\")","v":"00:00:00"},{"$f":"IFERROR(IF(A72,0,IF(LEN('Gewichtsverlust-Tracker'!$C75)=0,0,'Gewichtsverlust-Tracker'!$C75)),\"\")","v":0}]
[{"$f":"IF((LEN('Gewichtsverlust-Tracker'!$C76)=0),TRUE)","v":true},{"$f":"IFERROR(IF(A73,0,IF(LEN('Gewichtsverlust-Tracker'!$B76)=0,0,'Gewichtsverlust-Tracker'!$B76)),\"\")","v":"00:00:00"},{"$f":"IFERROR(IF(A73,0,IF(LEN('Gewichtsverlust-Tracker'!$C76)=0,0,'Gewichtsverlust-Tracker'!$C76)),\"\")","v":0}]
[{"$f":"IF((LEN('Gewichtsverlust-Tracker'!$C77)=0),TRUE)","v":true},{"$f":"IFERROR(IF(A74,0,IF(LEN('Gewichtsverlust-Tracker'!$B77)=0,0,'Gewichtsverlust-Tracker'!$B77)),\"\")","v":"00:00:00"},{"$f":"IFERROR(IF(A74,0,IF(LEN('Gewichtsverlust-Tracker'!$C77)=0,0,'Gewichtsverlust-Tracker'!$C77)),\"\")","v":0}]
[{"$f":"IF((LEN('Gewichtsverlust-Tracker'!$C78)=0),TRUE)","v":true},{"$f":"IFERROR(IF(A75,0,IF(LEN('Gewichtsverlust-Tracker'!$B78)=0,0,'Gewichtsverlust-Tracker'!$B78)),\"\")","v":"00:00:00"},{"$f":"IFERROR(IF(A75,0,IF(LEN('Gewichtsverlust-Tracker'!$C78)=0,0,'Gewichtsverlust-Tracker'!$C78)),\"\")","v":0}]
[{"$f":"IF((LEN('Gewichtsverlust-Tracker'!$C79)=0),TRUE)","v":true},{"$f":"IFERROR(IF(A76,0,IF(LEN('Gewichtsverlust-Tracker'!$B79)=0,0,'Gewichtsverlust-Tracker'!$B79)),\"\")","v":"00:00:00"},{"$f":"IFERROR(IF(A76,0,IF(LEN('Gewichtsverlust-Tracker'!$C79)=0,0,'Gewichtsverlust-Tracker'!$C79)),\"\")","v":0}]
[{"$f":"IF((LEN('Gewichtsverlust-Tracker'!$C80)=0),TRUE)","v":true},{"$f":"IFERROR(IF(A77,0,IF(LEN('Gewichtsverlust-Tracker'!$B80)=0,0,'Gewichtsverlust-Tracker'!$B80)),\"\")","v":"00:00:00"},{"$f":"IFERROR(IF(A77,0,IF(LEN('Gewichtsverlust-Tracker'!$C80)=0,0,'Gewichtsverlust-Tracker'!$C80)),\"\")","v":0}]
[{"$f":"IF((LEN('Gewichtsverlust-Tracker'!$C81)=0),TRUE)","v":true},{"$f":"IFERROR(IF(A78,0,IF(LEN('Gewichtsverlust-Tracker'!$B81)=0,0,'Gewichtsverlust-Tracker'!$B81)),\"\")","v":"00:00:00"},{"$f":"IFERROR(IF(A78,0,IF(LEN('Gewichtsverlust-Tracker'!$C81)=0,0,'Gewichtsverlust-Tracker'!$C81)),\"\")","v":0}]
[{"$f":"IF((LEN('Gewichtsverlust-Tracker'!$C82)=0),TRUE)","v":true},{"$f":"IFERROR(IF(A79,0,IF(LEN('Gewichtsverlust-Tracker'!$B82)=0,0,'Gewichtsverlust-Tracker'!$B82)),\"\")","v":"00:00:00"},{"$f":"IFERROR(IF(A79,0,IF(LEN('Gewichtsverlust-Tracker'!$C82)=0,0,'Gewichtsverlust-Tracker'!$C82)),\"\")","v":0}]
[{"$f":"IF((LEN('Gewichtsverlust-Tracker'!$C83)=0),TRUE)","v":true},{"$f":"IFERROR(IF(A80,0,IF(LEN('Gewichtsverlust-Tracker'!$B83)=0,0,'Gewichtsverlust-Tracker'!$B83)),\"\")","v":"00:00:00"},{"$f":"IFERROR(IF(A80,0,IF(LEN('Gewichtsverlust-Tracker'!$C83)=0,0,'Gewichtsverlust-Tracker'!$C83)),\"\")","v":0}]
[{"$f":"IF((LEN('Gewichtsverlust-Tracker'!$C84)=0),TRUE)","v":true},{"$f":"IFERROR(IF(A81,0,IF(LEN('Gewichtsverlust-Tracker'!$B84)=0,0,'Gewichtsverlust-Tracker'!$B84)),\"\")","v":"00:00:00"},{"$f":"IFERROR(IF(A81,0,IF(LEN('Gewichtsverlust-Tracker'!$C84)=0,0,'Gewichtsverlust-Tracker'!$C84)),\"\")","v":0}]
[{"$f":"IF((LEN('Gewichtsverlust-Tracker'!$C85)=0),TRUE)","v":true},{"$f":"IFERROR(IF(A82,0,IF(LEN('Gewichtsverlust-Tracker'!$B85)=0,0,'Gewichtsverlust-Tracker'!$B85)),\"\")","v":"00:00:00"},{"$f":"IFERROR(IF(A82,0,IF(LEN('Gewichtsverlust-Tracker'!$C85)=0,0,'Gewichtsverlust-Tracker'!$C85)),\"\")","v":0}]
[{"$f":"IF((LEN('Gewichtsverlust-Tracker'!$C86)=0),TRUE)","v":true},{"$f":"IFERROR(IF(A83,0,IF(LEN('Gewichtsverlust-Tracker'!$B86)=0,0,'Gewichtsverlust-Tracker'!$B86)),\"\")","v":"00:00:00"},{"$f":"IFERROR(IF(A83,0,IF(LEN('Gewichtsverlust-Tracker'!$C86)=0,0,'Gewichtsverlust-Tracker'!$C86)),\"\")","v":0}]
[{"$f":"IF((LEN('Gewichtsverlust-Tracker'!$C87)=0),TRUE)","v":true},{"$f":"IFERROR(IF(A84,0,IF(LEN('Gewichtsverlust-Tracker'!$B87)=0,0,'Gewichtsverlust-Tracker'!$B87)),\"\")","v":"00:00:00"},{"$f":"IFERROR(IF(A84,0,IF(LEN('Gewichtsverlust-Tracker'!$C87)=0,0,'Gewichtsverlust-Tracker'!$C87)),\"\")","v":0}]
[{"$f":"IF((LEN('Gewichtsverlust-Tracker'!$C88)=0),TRUE)","v":true},{"$f":"IFERROR(IF(A85,0,IF(LEN('Gewichtsverlust-Tracker'!$B88)=0,0,'Gewichtsverlust-Tracker'!$B88)),\"\")","v":"00:00:00"},{"$f":"IFERROR(IF(A85,0,IF(LEN('Gewichtsverlust-Tracker'!$C88)=0,0,'Gewichtsverlust-Tracker'!$C88)),\"\")","v":0}]
[{"$f":"IF((LEN('Gewichtsverlust-Tracker'!$C89)=0),TRUE)","v":true},{"$f":"IFERROR(IF(A86,0,IF(LEN('Gewichtsverlust-Tracker'!$B89)=0,0,'Gewichtsverlust-Tracker'!$B89)),\"\")","v":"00:00:00"},{"$f":"IFERROR(IF(A86,0,IF(LEN('Gewichtsverlust-Tracker'!$C89)=0,0,'Gewichtsverlust-Tracker'!$C89)),\"\")","v":0}]
[{"$f":"IF((LEN('Gewichtsverlust-Tracker'!$C90)=0),TRUE)","v":true},{"$f":"IFERROR(IF(A87,0,IF(LEN('Gewichtsverlust-Tracker'!$B90)=0,0,'Gewichtsverlust-Tracker'!$B90)),\"\")","v":"00:00:00"},{"$f":"IFERROR(IF(A87,0,IF(LEN('Gewichtsverlust-Tracker'!$C90)=0,0,'Gewichtsverlust-Tracker'!$C90)),\"\")","v":0}]
[{"$f":"IF((LEN('Gewichtsverlust-Tracker'!$C91)=0),TRUE)","v":true},{"$f":"IFERROR(IF(A88,0,IF(LEN('Gewichtsverlust-Tracker'!$B91)=0,0,'Gewichtsverlust-Tracker'!$B91)),\"\")","v":"00:00:00"},{"$f":"IFERROR(IF(A88,0,IF(LEN('Gewichtsverlust-Tracker'!$C91)=0,0,'Gewichtsverlust-Tracker'!$C91)),\"\")","v":0}]
[{"$f":"IF((LEN('Gewichtsverlust-Tracker'!$C92)=0),TRUE)","v":true},{"$f":"IFERROR(IF(A89,0,IF(LEN('Gewichtsverlust-Tracker'!$B92)=0,0,'Gewichtsverlust-Tracker'!$B92)),\"\")","v":"00:00:00"},{"$f":"IFERROR(IF(A89,0,IF(LEN('Gewichtsverlust-Tracker'!$C92)=0,0,'Gewichtsverlust-Tracker'!$C92)),\"\")","v":0}]
[{"$f":"IF((LEN('Gewichtsverlust-Tracker'!$C93)=0),TRUE)","v":true},{"$f":"IFERROR(IF(A90,0,IF(LEN('Gewichtsverlust-Tracker'!$B93)=0,0,'Gewichtsverlust-Tracker'!$B93)),\"\")","v":"00:00:00"},{"$f":"IFERROR(IF(A90,0,IF(LEN('Gewichtsverlust-Tracker'!$C93)=0,0,'Gewichtsverlust-Tracker'!$C93)),\"\")","v":0}]
[{"$f":"IF((LEN('Gewichtsverlust-Tracker'!$C94)=0),TRUE)","v":true},{"$f":"IFERROR(IF(A91,0,IF(LEN('Gewichtsverlust-Tracker'!$B94)=0,0,'Gewichtsverlust-Tracker'!$B94)),\"\")","v":"00:00:00"},{"$f":"IFERROR(IF(A91,0,IF(LEN('Gewichtsverlust-Tracker'!$C94)=0,0,'Gewichtsverlust-Tracker'!$C94)),\"\")","v":0}]
[{"$f":"IF((LEN('Gewichtsverlust-Tracker'!$C95)=0),TRUE)","v":true},{"$f":"IFERROR(IF(A92,0,IF(LEN('Gewichtsverlust-Tracker'!$B95)=0,0,'Gewichtsverlust-Tracker'!$B95)),\"\")","v":"00:00:00"},{"$f":"IFERROR(IF(A92,0,IF(LEN('Gewichtsverlust-Tracker'!$C95)=0,0,'Gewichtsverlust-Tracker'!$C95)),\"\")","v":0}]
[{"$f":"IF((LEN('Gewichtsverlust-Tracker'!$C96)=0),TRUE)","v":true},{"$f":"IFERROR(IF(A93,0,IF(LEN('Gewichtsverlust-Tracker'!$B96)=0,0,'Gewichtsverlust-Tracker'!$B96)),\"\")","v":"00:00:00"},{"$f":"IFERROR(IF(A93,0,IF(LEN('Gewichtsverlust-Tracker'!$C96)=0,0,'Gewichtsverlust-Tracker'!$C96)),\"\")","v":0}]
[{"$f":"IF((LEN('Gewichtsverlust-Tracker'!$C97)=0),TRUE)","v":true},{"$f":"IFERROR(IF(A94,0,IF(LEN('Gewichtsverlust-Tracker'!$B97)=0,0,'Gewichtsverlust-Tracker'!$B97)),\"\")","v":"00:00:00"},{"$f":"IFERROR(IF(A94,0,IF(LEN('Gewichtsverlust-Tracker'!$C97)=0,0,'Gewichtsverlust-Tracker'!$C97)),\"\")","v":0}]
[{"$f":"IF((LEN('Gewichtsverlust-Tracker'!$C98)=0),TRUE)","v":true},{"$f":"IFERROR(IF(A95,0,IF(LEN('Gewichtsverlust-Tracker'!$B98)=0,0,'Gewichtsverlust-Tracker'!$B98)),\"\")","v":"00:00:00"},{"$f":"IFERROR(IF(A95,0,IF(LEN('Gewichtsverlust-Tracker'!$C98)=0,0,'Gewichtsverlust-Tracker'!$C98)),\"\")","v":0}]
[{"$f":"IF((LEN('Gewichtsverlust-Tracker'!$C99)=0),TRUE)","v":true},{"$f":"IFERROR(IF(A96,0,IF(LEN('Gewichtsverlust-Tracker'!$B99)=0,0,'Gewichtsverlust-Tracker'!$B99)),\"\")","v":"00:00:00"},{"$f":"IFERROR(IF(A96,0,IF(LEN('Gewichtsverlust-Tracker'!$C99)=0,0,'Gewichtsverlust-Tracker'!$C99)),\"\")","v":0}]
[{"$f":"IF((LEN('Gewichtsverlust-Tracker'!$C100)=0),TRUE)","v":true},{"$f":"IFERROR(IF(A97,0,IF(LEN('Gewichtsverlust-Tracker'!$B100)=0,0,'Gewichtsverlust-Tracker'!$B100)),\"\")","v":"00:00:00"},{"$f":"IFERROR(IF(A97,0,IF(LEN('Gewichtsverlust-Tracker'!$C100)=0,0,'Gewichtsverlust-Tracker'!$C100)),\"\")","v":0}]
[{"$f":"IF((LEN('Gewichtsverlust-Tracker'!$C101)=0),TRUE)","v":true},{"$f":"IFERROR(IF(A98,0,IF(LEN('Gewichtsverlust-Tracker'!$B101)=0,0,'Gewichtsverlust-Tracker'!$B101)),\"\")","v":"00:00:00"},{"$f":"IFERROR(IF(A98,0,IF(LEN('Gewichtsverlust-Tracker'!$C101)=0,0,'Gewichtsverlust-Tracker'!$C101)),\"\")","v":0}]
[{"$f":"IF((LEN('Gewichtsverlust-Tracker'!$C102)=0),TRUE)","v":true},{"$f":"IFERROR(IF(A99,0,IF(LEN('Gewichtsverlust-Tracker'!$B102)=0,0,'Gewichtsverlust-Tracker'!$B102)),\"\")","v":"00:00:00"},{"$f":"IFERROR(IF(A99,0,IF(LEN('Gewichtsverlust-Tracker'!$C102)=0,0,'Gewichtsverlust-Tracker'!$C102)),\"\")","v":0}]
[{"$f":"IF((LEN('Gewichtsverlust-Tracker'!$C103)=0),TRUE)","v":true},{"$f":"IFERROR(IF(A100,0,IF(LEN('Gewichtsverlust-Tracker'!$B103)=0,0,'Gewichtsverlust-Tracker'!$B103)),\"\")","v":"00:00:00"},{"$f":"IFERROR(IF(A100,0,IF(LEN('Gewichtsverlust-Tracker'!$C103)=0,0,'Gewichtsverlust-Tracker'!$C103)),\"\")","v":0}]
[{"$f":"IF((LEN('Gewichtsverlust-Tracker'!$C104)=0),TRUE)","v":true},{"$f":"IFERROR(IF(A101,0,IF(LEN('Gewichtsverlust-Tracker'!$B104)=0,0,'Gewichtsverlust-Tracker'!$B104)),\"\")","v":"00:00:00"},{"$f":"IFERROR(IF(A101,0,IF(LEN('Gewichtsverlust-Tracker'!$C104)=0,0,'Gewichtsverlust-Tracker'!$C104)),\"\")","v":0}]
[{"$f":"IF((LEN('Gewichtsverlust-Tracker'!$C105)=0),TRUE)","v":true},{"$f":"IFERROR(IF(A102,0,IF(LEN('Gewichtsverlust-Tracker'!$B105)=0,0,'Gewichtsverlust-Tracker'!$B105)),\"\")","v":"00:00:00"},{"$f":"IFERROR(IF(A102,0,IF(LEN('Gewichtsverlust-Tracker'!$C105)=0,0,'Gewichtsverlust-Tracker'!$C105)),\"\")","v":0}]
[{"$f":"IF((LEN('Gewichtsverlust-Tracker'!$C106)=0),TRUE)","v":true},{"$f":"IFERROR(IF(A103,0,IF(LEN('Gewichtsverlust-Tracker'!$B106)=0,0,'Gewichtsverlust-Tracker'!$B106)),\"\")","v":"00:00:00"},{"$f":"IFERROR(IF(A103,0,IF(LEN('Gewichtsverlust-Tracker'!$C106)=0,0,'Gewichtsverlust-Tracker'!$C106)),\"\")","v":0}]
[{"$f":"IF((LEN('Gewichtsverlust-Tracker'!$C107)=0),TRUE)","v":true},{"$f":"IFERROR(IF(A104,0,IF(LEN('Gewichtsverlust-Tracker'!$B107)=0,0,'Gewichtsverlust-Tracker'!$B107)),\"\")","v":"00:00:00"},{"$f":"IFERROR(IF(A104,0,IF(LEN('Gewichtsverlust-Tracker'!$C107)=0,0,'Gewichtsverlust-Tracker'!$C107)),\"\")","v":0}]
[{"$f":"IF((LEN('Gewichtsverlust-Tracker'!$C108)=0),TRUE)","v":true},{"$f":"IFERROR(IF(A105,0,IF(LEN('Gewichtsverlust-Tracker'!$B108)=0,0,'Gewichtsverlust-Tracker'!$B108)),\"\")","v":"00:00:00"},{"$f":"IFERROR(IF(A105,0,IF(LEN('Gewichtsverlust-Tracker'!$C108)=0,0,'Gewichtsverlust-Tracker'!$C108)),\"\")","v":0}]
[{"$f":"IF((LEN('Gewichtsverlust-Tracker'!$C109)=0),TRUE)","v":true},{"$f":"IFERROR(IF(A106,0,IF(LEN('Gewichtsverlust-Tracker'!$B109)=0,0,'Gewichtsverlust-Tracker'!$B109)),\"\")","v":"00:00:00"},{"$f":"IFERROR(IF(A106,0,IF(LEN('Gewichtsverlust-Tracker'!$C109)=0,0,'Gewichtsverlust-Tracker'!$C109)),\"\")","v":0}]
[{"$f":"IF((LEN('Gewichtsverlust-Tracker'!$C110)=0),TRUE)","v":true},{"$f":"IFERROR(IF(A107,0,IF(LEN('Gewichtsverlust-Tracker'!$B110)=0,0,'Gewichtsverlust-Tracker'!$B110)),\"\")","v":"00:00:00"},{"$f":"IFERROR(IF(A107,0,IF(LEN('Gewichtsverlust-Tracker'!$C110)=0,0,'Gewichtsverlust-Tracker'!$C110)),\"\")","v":0}]